bitfinex/quotes_ETHUSD_20240927
["timestamp","ask_amount","ask_price","bid_price","bid_amount"]
[1727472672807,3.79779809,2703.0,2702.9,0.07234789]
[1727472674049,3.79779809,2703.0,2702.8,3.69986]
[1727472674249,3.79779809,2703.0,2702.9,0.07248292]
[1727472674663,3.79810785,2703.0,2702.9,0.07248292]
[1727472674870,1.46728566,2703.0,2702.9,0.07248292]
[1727472675170,3.79812138,2703.0,2702.9,0.07248292]
[1727472675775,3.79807892,2703.0,2702.9,0.07248292]
[1727472676078,3.79809272,2703.0,2702.9,0.07248292]
[1727472676678,3.79809272,2703.0,2702.9,3.77220292]
[1727472676876,3.11660706,2703.0,2702.9,3.77220292]
[1727472677676,3.11660706,2703.0,2702.9,0.07248292]
[1727472678256,1.94216463,2703.0,2702.9,3.77220292]
[1727472678499,2.33080706,2703.2,2703.0,3.69955]
[1727472678703,0.7858,2703.4,2703.1,3.69945]
[1727472678704,2.33080706,2703.3,2703.1,3.69945]
[1727472679185,2.33080706,2703.3,2703.0,3.69955]
[1727472679186,2.33080706,2703.3,2703.2,0.07221978]
[1727472679386,0.31166071,2703.3,2703.2,0.07221978]
[1727472679592,0.31166071,2703.3,2703.0,3.69951]
[1727472679770,2.64246281,2703.3,2703.0,3.69951]
[1727472679971,2.3308021,2703.2,2703.0,3.69951]
[1727472680305,2.64246281,2703.3,2703.0,3.69951]
[1727472680603,2.3307125,2703.3,2703.0,3.69951]
[1727472681201,2.3307125,2703.2,2703.0,3.69951]
[1727472681913,2.3307125,2703.2,2703.0,4.46251]
[1727472682078,2.3307125,2703.2,2703.0,8.16201]
[1727472682278,2.3307125,2703.2,2703.0,4.4625]
[1727472682609,2.3307125,2703.2,2703.1,0.0722496]
[1727472684275,0.8313,2703.3,2703.1,0.0722496]
[1727472684611,1.47312046,2703.3,2703.1,0.0722496]
[1727472684771,1.47312046,2703.3,2702.9,3.6997]
[1727472684974,2.33133368,2703.1,2702.9,3.6997]
[1727472685186,2.33133368,2703.1,2702.8,3.69977]
[1727472685427,4.53049,2703.3,2702.8,3.69977]
[1727472685571,2.33143855,2703.0,2702.7,3.69996]
[1727472685768,1.94284863,2702.8,2702.7,3.69996]
[1727472687612,3.16273855,2703.0,2702.7,3.69996]
[1727472687809,2.33143855,2702.9,2702.5,3.70014]
[1727472688008,1.94321616,2702.6,2702.5,3.70014]
[1727472689219,3.16273855,2702.8,2702.4,3.7004]
[1727472689427,1.94336232,2702.5,2702.4,3.7004]
[1727472690120,1.55461589,2702.5,2702.4,3.7004]
[1727472690430,1.94323329,2702.6,2702.5,3.70027]
[1727472690582,3.16317995,2702.8,2702.5,3.70027]
[1727472690983,3.16317995,2702.8,2702.5,7.40047]
[1727472691305,3.16317995,2702.8,2702.5,3.7002]
[1727472691504,1.94313837,2702.6,2702.5,3.70018]
[1727472692083,3.16317995,2702.8,2702.5,3.70018]
[1727472693415,3.16317995,2702.8,2702.4,3.70041]
[1727472693416,2.33187995,2702.7,2702.4,3.70041]
[1727472694023,2.33187995,2702.7,2702.2,7.40121]
[1727472694194,1.55434578,2702.3,2702.2,3.7006]
[1727472694828,1.94293223,2702.4,2702.2,3.7006]
[1727472695030,1.94293223,2702.3,2702.1,4.48772]
[1727472695198,0.8313,2702.5,2702.1,4.48772]
[1727472695516,1.55429942,2702.2,2702.1,4.48772]
[1727472695827,1.55429942,2702.2,2702.1,3.70082]
[1727472697255,1.94287427,2702.3,2702.1,0.07322832]
[1727472697415,1.94287427,2702.2,2702.1,0.07322832]
[1727472700300,1.94160273,2702.2,2702.1,0.07322832]
[1727472700531,3.38624919,2702.4,2702.1,0.07322832]
[1727472700831,1.94162224,2702.2,2702.1,0.07322832]
[1727472701057,0.8313,2702.2,2701.8,7.40227]
[1727472701255,1.16479158,2701.9,2701.8,3.70112]
[1727472707453,1.55305544,2701.9,2701.7,3.70128]
[1727472707650,1.16360109,2701.8,2701.7,3.70128]
[1727472707862,1.55305544,2701.9,2701.7,3.70128]
[1727472708528,1.16362693,2701.8,2701.7,3.70128]
[1727472709161,1.16362693,2701.8,2701.7,3.77539986]
[1727472709462,1.1634326,2701.8,2701.7,0.07411986]
[1727472711172,0.48195202,2701.8,2701.7,0.07411986]
[1727472711472,0.48195202,2701.8,2701.5,3.70155]
[1727472711473,2.03275073,2701.8,2701.5,3.70155]
[1727472711769,1.16282248,2701.7,2701.6,0.07426075]
[1727472711956,1.16284525,2701.7,2701.6,0.07426075]
[1727472712138,1.55079871,2701.8,2701.6,0.07426075]
[1727472712467,2.34595658,2701.8,2701.6,0.07426075]
[1727472712670,1.16260385,2701.7,2701.6,0.07426075]
[1727472713787,1.16260385,2701.7,2701.3,3.70189]
[1727472713788,1.16260385,2701.7,2701.4,3.70171]
[1727472714072,0.77492061,2701.6,2701.4,3.70171]
[1727472714365,0.77492061,2701.5,2701.4,3.70171]
[1727472715642,0.77492061,2701.6,2701.4,3.70171]
[1727472720238,0.761,2701.5,2701.1,3.70209]
[1727472720457,0.77492061,2701.4,2701.1,3.70209]
[1727472720656,1.53592061,2701.5,2701.1,3.70209]
[1727472720864,0.77492061,2701.4,2701.1,3.70209]
[1727472721080,0.77492061,2701.4,2701.1,7.4042]
[1727472721573,1.53592061,2701.5,2701.2,3.70204]
[1727472721733,1.53592061,2701.5,2701.0,0.783]
[1727472721938,0.77492061,2701.4,2701.0,4.4852]
[1727472722368,1.53592061,2701.5,2701.0,4.4852]
[1727472722533,0.77492061,2701.5,2701.3,3.70187]
[1727472722738,0.77492061,2701.6,2701.4,4.51678]
[1727472722940,0.77492061,2701.7,2701.4,4.51678]
[1727472723665,0.77492061,2701.6,2701.4,4.51678]
[1727472723865,0.77492061,2701.7,2701.4,4.51678]
[1727472724536,0.77492061,2701.6,2701.4,4.51678]
[1727472727250,0.77492061,2701.6,2701.5,0.07480717]
[1727472728057,0.77403102,2701.6,2701.5,0.07480717]
[1727472728577,1.16260385,2701.7,2701.5,0.07480717]
[1727472729572,1.16260385,2701.6,2701.5,0.07480717]
[1727472733491,1.55079871,2701.7,2701.5,0.07480717]
[1727472734489,1.16172051,2701.6,2701.5,0.07480717]
[1727472734658,1.55079871,2701.7,2701.5,0.07480717]
[1727472735558,1.55079871,2701.6,2701.5,0.07480717]
[1727472738673,1.93792044,2701.7,2701.5,0.07480717]
[1727472739789,1.93792044,2701.6,2701.5,0.07480717]
[1727472743620,7.27473098,2701.8,2701.5,0.07480717]
[1727472743826,1.0975841,2701.7,2701.5,0.07480717]
[1727472743978,1.0975841,2701.7,2701.4,0.815]
[1727472744298,1.94036879,2701.5,2701.4,0.815]
[1727472747486,3.42308863,2701.7,2701.4,0.815]
[1727472747931,3.4275132,2701.7,2701.4,0.815]
[1727472750491,2.3299291,2701.6,2701.4,0.815]
[1727472752945,2.33257317,2701.6,2701.4,0.815]
[1727472755552,2.33257317,2701.5,2701.4,0.815]
[1727472756425,2.33257317,2701.6,2701.4,0.815]
[1727472756623,2.33257317,2701.5,2701.4,0.815]
[1727472757223,2.33257317,2701.5,2701.4,0.88980806]
[1727472761735,2.33460597,2701.5,2701.4,0.88980806]
[1727472761949,2.33460597,2701.5,2701.4,0.815]
[1727472762252,7.43508391,2701.7,2701.4,0.815]
[1727472762837,7.43748662,2701.7,2701.4,0.815]
[1727472763041,0.74374866,2701.6,2701.4,0.815]
[1727472763761,4.52260662,2701.7,2701.3,3.70188]
[1727472763923,2.33464777,2701.4,2701.3,3.70188]
[1727472764259,2.33464777,2701.4,2701.3,3.77676623]
[1727472764426,2.33464777,2701.5,2701.3,3.77676623]
[1727472764832,2.33464777,2701.4,2701.3,3.77676623]
[1727472765045,2.33464777,2701.5,2701.3,3.77676623]
[1727472765234,2.33464777,2701.6,2701.3,3.77676623]
[1727472765430,2.33464777,2701.5,2701.3,3.77676623]
[1727472765635,2.33464777,2701.5,2701.3,3.70188]
[1727472767829,2.33519686,2701.5,2701.4,0.8134]
[1727472768030,1.94626632,2701.6,2701.4,0.8134]
[1727472768344,1.556356,2701.6,2701.5,4.966532]
[1727472768852,1.556356,2701.6,2701.5,5.04111708]
[1727472769362,1.556356,2701.7,2701.5,5.04111708]
[1727472769561,1.556356,2701.7,2701.6,3.70151]
[1727472769728,1.94542911,2701.8,2701.7,3.70137]
[1727472769937,1.94542911,2701.8,2701.7,3.77579877]
[1727472772747,1.94377058,2701.8,2701.7,3.77579877]
[1727472773356,1.94377058,2701.9,2701.7,3.77579877]
[1727472774235,1.94377058,2701.8,2701.7,3.77579877]
[1727472774539,1.94348579,2701.9,2701.7,3.77579877]
[1727472775374,1.55445052,2701.8,2701.7,3.77579877]
[1727472776705,1.94348579,2701.9,2701.7,3.77579877]
[1727472776880,1.55432275,2701.8,2701.7,3.77579877]
[1727472779062,1.94274826,2701.9,2701.7,3.77579877]
[1727472779379,1.55386945,2701.8,2701.7,3.77579877]
[1727472803852,1.55288836,2701.8,2701.7,3.77579877]
[1727472804355,1.94033488,2701.9,2701.7,3.77579877]
[1727472805417,1.94033488,2701.8,2701.7,3.77579877]
[1727472805645,1.94146249,2701.9,2701.7,3.77579877]
[1727472806346,1.55316067,2701.8,2701.7,3.77579877]
[1727472806709,1.94146249,2701.9,2701.7,3.77579877]
[1727472807149,1.5532973,2701.8,2701.7,3.77579877]
[1727472807474,1.94146249,2701.9,2701.8,3.70123]
[1727472807830,1.94146249,2701.9,2701.8,3.77524275]
[1727472808032,2.32975499,2702.1,2701.8,3.77524275]
[1727472808247,3.01174649,2702.1,2701.8,3.77524275]
[1727472808750,1.94208796,2701.9,2701.8,3.77524275]
[1727472809354,3.01174649,2702.1,2701.8,3.77524275]
[1727472810545,3.01334486,2702.1,2701.8,3.77524275]
[1727472811041,2.33135336,2702.0,2701.8,3.77524275]
[1727472811214,0.6819915,2702.1,2701.8,3.77524275]
[1727472811215,3.01334486,2702.1,2701.8,3.77524275]
[1727472811420,2.33135336,2702.0,2701.8,3.77524275]
[1727472813319,2.33135336,2701.9,2701.8,3.77524275]
[1727472815588,2.33395216,2701.9,2701.8,3.77524275]
[1727472816985,4.97860145,2701.9,2701.8,0.07401275]
[1727472817350,7.70154564,2701.9,2701.5,3.70164]
[1727472817598,2.33380494,2701.7,2701.5,3.70164]
[1727472817745,2.33380494,2701.7,2701.6,0.07416424]
[1727472819042,2.33380494,2701.7,2701.4,3.70165]
[1727472819245,1.94414157,2701.5,2701.4,3.70165]
[1727472820687,1.94387302,2701.5,2701.4,3.70178]
[1727472825701,1.94305963,2701.5,2701.4,3.70178]
[1727472828897,1.94277049,2701.5,2701.4,3.70178]
[1727472830655,1.94266756,2701.5,2701.4,3.70178]
[1727472832285,1.94266756,2701.5,2701.4,3.77624049]
[1727472833360,1.94266756,2701.6,2701.4,3.77624049]
[1727472833593,1.94266756,2701.6,2701.5,3.70164]
[1727472833766,2.33120107,2701.8,2701.5,3.70164]
[1727472833970,2.33120107,2701.8,2701.6,3.70141]
[1727472834368,2.33120107,2701.8,2701.7,0.07422603]
[1727472834583,2.91506464,2701.8,2701.7,0.07422603]
[1727472835456,2.91471841,2701.8,2701.7,0.07422603]
[1727472836102,3.66531841,2701.8,2701.7,0.07422603]
[1727472836304,1.33446357,2701.8,2701.4,3.70177]
[1727472836506,1.33446357,2701.8,2701.4,3.70171]
[1727472836507,2.33074952,2701.7,2701.4,3.70171]
[1727472836676,1.94220963,2701.5,2701.4,3.70169]
[1727472840390,1.94214295,2701.5,2701.4,3.70169]
[1727472843595,1.94203292,2701.5,2701.4,3.70169]
[1727472846443,1.94203292,2701.5,2701.4,4.47529]
[1727472847298,1.94203292,2701.5,2701.4,4.54740647]
[1727472848746,1.94109855,2701.5,2701.4,4.54740647]
[1727472850449,1.5539415,2701.5,2701.4,5.37242712]
[1727472850651,1.55390464,2701.5,2701.4,5.37242712]
[1727472850949,1.55390464,2701.6,2701.5,3.70164]
[1727472851339,3.1017395,2701.9,2701.5,3.77373916]
[1727472851538,3.1017395,2701.9,2701.7,3.70126]
[1727472852057,3.1017395,2701.9,2701.8,0.07186472]
[1727472852411,3.1017395,2701.9,2701.7,3.70126]
[1727472852637,3.1017395,2701.9,2701.8,0.07186472]
[1727472853018,3.1017395,2701.9,2701.7,3.70126]
[1727472853222,3.1017395,2701.9,2701.8,0.07186472]
[1727472853612,3.10237142,2701.9,2701.8,0.07186472]
[1727472854010,3.10237142,2701.9,2701.7,3.70126]
[1727472854208,3.10237142,2701.9,2701.8,0.07186472]
[1727472854411,3.10237142,2701.9,2701.7,3.70126]
[1727472854614,3.10237142,2701.9,2701.8,0.07186472]
[1727472855409,3.10237142,2701.9,2701.7,3.70126]
[1727472855608,3.10237142,2701.9,2701.8,3.77309472]
[1727472858515,0.7713,2701.9,2701.8,3.77309472]
[1727472859127,3.10302084,2701.9,2701.8,3.77309472]
[1727472859544,0.7713,2701.9,2701.8,3.77309472]
[1727472864481,0.7713,2701.9,2701.8,0.07186472]
[1727472864982,0.7713,2701.9,2701.8,0.07173946]
[1727472865271,0.7713,2701.9,2701.7,3.70132]
[1727472865579,0.7713,2701.9,2701.8,0.07173946]
[1727472865778,0.7713,2701.9,2701.7,3.70132]
[1727472865985,2.33232586,2701.8,2701.7,3.70132]
[1727472867471,2.33232586,2701.8,2701.6,3.70148]
[1727472867639,2.33232586,2701.8,2701.6,3.70142]
[1727472868349,2.3320984,2701.8,2701.6,3.70142]
[1727472868583,2.3320984,2701.8,2701.7,3.70137]
[1727472869962,2.33168411,2701.8,2701.7,3.70137]
[1727472870158,0.7713,2701.9,2701.7,3.70137]
[1727472870380,2.3316865,2701.8,2701.7,3.70137]
[1727472877464,2.3316865,2701.8,2701.7,3.77323093]
[1727472878264,2.3318936,2701.8,2701.7,3.77323093]
[1727472878470,0.7713,2701.9,2701.7,3.77323093]
[1727472878778,2.33173905,2701.8,2701.7,3.77323093]
[1727472883272,2.33232609,2701.8,2701.7,3.77323093]
[1727472885309,2.33245813,2701.8,2701.7,3.77323093]
[1727472885517,0.7713,2701.9,2701.7,3.77323093]
[1727472885714,2.33255948,2701.8,2701.7,3.77323093]
[1727472886691,0.7713,2701.9,2701.7,3.77323093]
[1727472886892,2.33256671,2701.8,2701.7,0.07186093]
[1727472887693,0.7713,2701.9,2701.7,0.07186093]
[1727472888316,1.49066602,2701.9,2701.5,3.70162]
[1727472888515,2.33261241,2701.7,2701.5,3.70162]
[1727472888679,2.33261241,2701.7,2701.6,0.07194873]
[1727472889019,2.33265955,2701.7,2701.6,0.07194873]
[1727472892482,2.33265955,2701.7,2701.6,3.77345873]
[1727472893123,2.33301144,2701.7,2701.6,3.77345873]
[1727472900746,2.33301144,2701.7,2701.6,3.76637572]
[1727472901461,3.49314669,2701.9,2701.6,0.06486572]
[1727472901745,0.34931467,2701.8,2701.6,3.76636572]
[1727472903244,0.34931467,2701.8,2701.7,3.70137]
[1727472903757,0.34931467,2701.8,2701.7,3.7707036]
[1727472912294,1.13881467,2701.8,2701.7,3.7707036]
[1727472912890,1.13881467,2701.8,2701.3,7.40366]
[1727472913129,1.13881467,2701.8,2701.7,0.06704656]
[1727472913130,8.0408,2701.8,2701.7,0.06704656]
[1727472913431,0.7895,2701.5,2701.1,3.70219]
[1727472913730,2.33452545,2701.2,2701.1,3.70219]
[1727472915585,2.33452545,2701.3,2700.9,3.70235]
[1727472915790,1.94421478,2701.0,2700.7,3.70272]
[1727472916089,1.94421478,2700.9,2700.7,3.70272]
[1727472916290,4.49162,2701.2,2700.7,3.70272]
[1727472916291,1.94421478,2700.8,2700.7,3.70272]
[1727472917029,2.78368745,2701.1,2700.7,3.70272]
[1727472917030,1.94421478,2700.9,2700.7,3.70272]
[1727472917346,1.94421478,2700.8,2700.6,3.70288]
[1727472917634,1.94421478,2700.7,2700.4,4.50626]
[1727472917789,1.55444814,2700.5,2700.4,4.50626]
[1727472918389,1.55444814,2700.5,2700.4,4.50635]
[1727472918589,1.94421478,2700.6,2700.4,4.50635]
[1727472918590,1.55444814,2700.6,2700.4,4.50635]
[1727472919043,1.55444814,2700.5,2700.4,3.70315]
[1727472919222,1.94421478,2700.6,2700.3,3.70327]
[1727472919425,1.55372656,2700.4,2700.2,4.50653]
[1727472919631,1.16529849,2700.4,2700.2,4.50653]
[1727472920338,1.16529849,2700.3,2700.0,3.70357]
[1727472920543,0.77615515,2700.2,2700.1,3.70356]
[1727472920696,1.16529849,2700.3,2700.1,3.76817433]
[1727472920896,1.16529849,2700.2,2700.1,3.76817433]
[1727472921325,1.16529849,2700.2,2700.1,0.06461433]
[1727472921529,1.16529849,2700.3,2700.1,0.06461433]
[1727472921841,1.59365602,2700.3,2700.1,0.06461433]
[1727472922400,0.77545826,2700.2,2700.1,0.06461433]
[1727472924514,1.20381579,2700.3,2700.1,0.06461433]
[1727472924701,0.77545826,2700.2,2700.1,0.06461433]
[1727472925248,1.55975826,2700.2,2700.1,0.06461433]
[1727472925545,0.7843,2700.2,2700.1,0.06461433]
[1727472926241,4.80306143,2700.2,2700.1,0.06461433]
[1727472926427,6.35678799,2700.2,2700.1,0.06461433]
[1727472926628,3.7036,2700.1,2699.6,3.70417]
[1727472926830,0.77445973,2699.9,2699.6,3.70417]
[1727472927537,1.55875973,2700.0,2699.6,3.70417]
[1727472927769,0.56495896,2699.9,2699.6,3.70417]
[1727472929136,0.56495896,2699.9,2699.4,3.70444]
[1727472929928,0.7843,2699.8,2699.4,3.70444]
[1727472931696,4.48828,2699.8,2699.3,3.70462]
[1727472931950,5.38494497,2699.8,2699.3,3.70462]
[1727472932717,1.68096497,2699.8,2699.3,3.70462]
[1727472933153,1.68096497,2699.8,2699.4,3.7045]
[1727472936407,5.38500497,2699.8,2699.2,7.40944]
[1727472936924,5.38500497,2699.8,2699.3,3.70463]
[1727472937108,0.9088915,2699.7,2699.3,3.70463]
[1727472937311,0.9088915,2699.7,2699.4,0.13608133]
[1727472938187,0.9088915,2699.7,2699.4,3.84055133]
[1727472938484,0.7843,2699.8,2699.4,0.13608133]
[1727472943448,3.70416,2699.7,2699.4,0.13608133]
[1727472943955,0.8129,2699.6,2699.2,3.7047]
[1727472944157,0.8129,2699.6,2699.3,0.13636965]
[1727472944358,0.8129,2699.6,2699.2,3.7047]
[1727472944556,0.8129,2699.6,2699.3,0.13636965]
[1727472944756,0.8129,2699.6,2699.2,3.7047]
[1727472944958,0.8129,2699.6,2699.3,0.13636965]
[1727472945172,0.8129,2699.6,2699.2,3.7047]
[1727472945398,0.8129,2699.6,2699.3,0.13636965]
[1727472945599,0.8129,2699.6,2699.2,3.7047]
[1727472945804,0.8129,2699.6,2699.3,0.13642756]
[1727472946117,0.8129,2699.6,2699.2,3.7047]
[1727472946319,0.8129,2699.6,2699.4,0.13634669]
[1727472946532,0.8129,2699.6,2699.3,0.13642756]
[1727472946533,1.264606,2699.6,2699.3,0.13642756]
[1727472946695,0.8129,2699.6,2699.5,0.13626584]
[1727472946900,0.8129,2699.6,2699.4,0.13634669]
[1727472947101,0.8129,2699.6,2699.5,0.13626584]
[1727472947318,1.264606,2699.6,2699.5,0.13626584]
[1727472947513,1.264606,2699.6,2699.2,3.7047]
[1727472947990,1.264606,2699.6,2699.3,0.13642756]
[1727472948338,1.264606,2699.6,2699.2,3.7047]
[1727472948498,1.264606,2699.6,2699.4,0.13634669]
[1727472948705,1.264606,2699.6,2699.3,3.84107756]
[1727472948912,0.8129,2699.6,2699.5,0.13626584]
[1727472949177,0.8129,2699.6,2699.4,0.13634669]
[1727472949320,0.8129,2699.6,2699.5,0.13626584]
[1727472949740,0.8129,2699.6,2699.3,3.70465]
[1727472950057,0.8129,2699.6,2699.4,0.13634669]
[1727472950254,1.264588,2699.6,2699.4,0.13634669]
[1727472957578,2.03904773,2699.6,2699.4,0.13634669]
[1727472958375,0.77445973,2699.5,2699.4,0.13634669]
[1727472959846,0.77445973,2699.5,2699.4,4.63376669]
[1727472961563,1.1616896,2699.5,2699.4,4.63376669]
[1727472963568,1.55372656,2699.5,2699.4,4.63376669]
[1727472965579,1.94063451,2699.5,2699.4,4.63376669]
[1727472968397,2.32876142,2699.7,2699.4,4.63376669]
[1727472968598,2.32876142,2699.7,2699.4,4.49742]
[1727472969131,2.32876142,2699.7,2699.5,0.1362562]
[1727472969534,2.32876142,2699.6,2699.5,0.1362562]
[1727472971443,7.51463815,2699.8,2699.5,0.1362562]
[1727472972541,7.51463815,2699.8,2699.3,3.70463]
[1727472972697,2.3355723,2699.5,2699.3,3.70463]
[1727472972901,2.3355723,2699.5,2699.4,0.13633706]
[1727472973345,2.33556126,2699.5,2699.4,0.13633706]
[1727472977046,3.29279153,2699.5,2699.4,0.13633706]
[1727472977550,3.29279153,2699.5,2699.2,0.7644]
[1727472977759,3.29279153,2699.5,2699.4,0.13626949]
[1727472977911,3.29279153,2699.5,2699.3,0.13635035]
[1727472978118,3.29358964,2699.5,2699.4,0.13626949]
[1727472978866,3.29358964,2699.5,2699.2,0.7644]
[1727472979061,3.29358964,2699.5,2699.4,0.13626949]
[1727472979223,3.29358964,2699.5,2699.3,0.13635035]
[1727472979419,2.33635937,2699.4,2699.2,0.7644]
[1727472979737,2.33635937,2699.4,2699.3,0.13635035]
[1727472980050,2.33635937,2699.4,2699.2,0.7644]
[1727472980259,2.33635937,2699.4,2699.3,0.13635035]
[1727472980633,3.29358964,2699.5,2699.2,0.7644]
[1727472980962,2.33635937,2699.4,2699.3,0.13635035]
[1727472981318,3.29358964,2699.5,2699.2,0.7644]
[1727472981533,2.33635937,2699.4,2699.3,0.13635035]
[1727472981941,2.33635937,2699.4,2699.2,0.7644]
[1727472982117,2.33635937,2699.4,2699.3,0.13635035]
[1727472982429,2.33635937,2699.4,2699.2,4.4692]
[1727472982633,2.33635937,2699.4,2699.3,0.13635035]
[1727472982820,2.33635937,2699.4,2699.2,4.4692]
[1727472983066,0.8078,2699.6,2699.3,0.13635035]
[1727472983272,2.33685073,2699.4,2699.3,0.13635035]
[1727472983486,2.33685073,2699.4,2699.2,4.4692]
[1727472983769,2.33685073,2699.4,2699.3,0.13635035]
[1727472984111,2.33685073,2699.4,2699.2,4.4692]
[1727472984411,2.33685073,2699.4,2699.3,0.13635035]
[1727472984579,2.33685073,2699.4,2699.2,4.4692]
[1727472984761,2.33685073,2699.4,2699.3,0.13635035]
[1727472984967,2.33685073,2699.4,2699.2,4.4692]
[1727472985278,2.33685073,2699.4,2699.3,0.13635035]
[1727472985685,2.33685073,2699.4,2699.2,4.4692]
[1727472985895,2.33685073,2699.4,2699.3,0.13635035]
[1727472986261,2.33685073,2699.4,2699.2,4.4692]
[1727472986462,2.33685073,2699.4,2699.3,0.13635035]
[1727472986898,2.33685073,2699.4,2699.2,4.4692]
[1727472987122,2.33685073,2699.4,2699.3,0.13635035]
[1727472987477,2.33685073,2699.4,2699.2,4.4692]
[1727472987677,2.33685073,2699.4,2699.3,0.13642272]
[1727472988116,2.33752758,2699.4,2699.2,4.4692]
[1727472988315,2.33752758,2699.4,2699.3,0.13642272]
[1727472988678,2.33752758,2699.4,2699.2,4.4692]
[1727472988879,2.33752758,2699.4,2699.3,0.13642272]
[1727472989208,2.33752758,2699.4,2699.2,4.4692]
[1727472989518,2.33752758,2699.4,2699.3,0.13642272]
[1727472990723,2.33752758,2699.4,2699.2,4.4692]
[1727472991016,2.33752758,2699.4,2699.3,0.13642272]
[1727472991215,2.65206034,2699.4,2699.2,3.7048]
[1727472991377,2.65206034,2699.4,2699.3,0.13642272]
[1727472991578,2.65206034,2699.4,2699.2,3.7048]
[1727472991775,2.33752758,2699.4,2699.3,0.13642272]
[1727472992025,2.33752758,2699.4,2699.2,3.7048]
[1727472992199,2.33752758,2699.3,2699.2,3.7048]
[1727472993035,2.33729485,2699.3,2699.2,3.7048]
[1727472993516,2.33729485,2699.3,2699.1,3.70483]
[1727472994547,2.33729485,2699.3,2699.2,3.7048]
[1727472997250,2.33729485,2699.3,2699.2,3.84129876]
[1727472998046,2.33664902,2699.3,2699.2,3.84129876]
[1727473002579,2.33664902,2699.3,2699.2,0.13649876]
[1727473002783,0.8153,2699.5,2699.2,0.13649876]
[1727473002941,2.33672628,2699.3,2699.2,0.13649876]
[1727473004987,2.33672628,2699.3,2699.2,3.84129876]
[1727473005339,3.12222628,2699.3,2699.2,0.13649876]
[1727473007684,0.7855,2699.3,2699.2,0.13649876]
[1727473007886,3.12198685,2699.3,2699.2,0.13649876]
[1727473008387,3.12198685,2699.3,2699.2,3.84129876]
[1727473009182,3.1219609,2699.3,2699.2,3.84129876]
[1727473009691,3.1219609,2699.3,2699.2,0.13649876]
[1727473010554,0.7855,2699.3,2699.2,0.13649876]
[1727473011765,0.7855,2699.3,2699.1,3.70482]
[1727473011967,2.33630438,2699.2,2699.1,3.70482]
[1727473012169,2.33630438,2699.2,2698.9,3.70509]
[1727473012351,2.33630438,2699.2,2699.1,3.84159168]
[1727473012554,2.33630438,2699.2,2699.1,3.70493]
[1727473012777,2.33617045,2699.2,2699.1,3.84159168]
[1727473012988,2.33617045,2699.2,2699.1,0.13666168]
[1727473013657,2.33617045,2699.2,2699.0,3.70506]
[1727473013883,2.33617045,2699.2,2699.1,0.13666168]
[1727473014463,3.12167045,2699.3,2699.1,0.13666168]
[1727473014865,2.33617045,2699.2,2699.1,0.13666168]
[1727473016359,3.12167045,2699.3,2699.1,0.13666168]
[1727473016856,2.33617045,2699.2,2699.1,0.13666168]
[1727473017657,2.33592207,2699.2,2699.1,0.13666168]
[1727473018462,4.15882783,2699.3,2699.1,0.13666168]
[1727473019087,3.12046207,2699.3,2699.1,0.13666168]
[1727473019402,2.33592207,2699.2,2699.1,0.13666168]
[1727473020003,3.12046207,2699.3,2699.1,0.13666168]
[1727473020200,2.33592207,2699.2,2699.1,0.13666168]
[1727473020565,2.33592207,2699.2,2698.9,7.41022]
[1727473020761,2.33592207,2699.2,2699.1,0.13666168]
[1727473021100,2.33592207,2699.2,2699.1,0.13667618]
[1727473021305,2.33594242,2699.2,2699.0,3.70504]
[1727473021508,2.33594242,2699.2,2699.1,0.13667618]
[1727473023970,2.33594242,2699.2,2699.0,3.70506]
[1727473024188,2.33594242,2699.2,2699.1,0.13667618]
[1727473025479,2.33594242,2699.2,2698.9,3.70509]
[1727473025679,1.9459894,2699.0,2698.9,3.70509]
[1727473025910,1.9460607,2699.0,2698.9,3.70509]
[1727473026215,2.33527284,2699.2,2698.9,7.41022]
[1727473026770,1.94605735,2699.0,2698.9,7.41022]
[1727473027426,1.94605735,2699.0,2698.9,7.54705794]
[1727473029830,1.94605735,2699.0,2698.9,3.84192794]
[1727473031823,1.94605735,2699.0,2698.9,0.13683794]
[1727473032042,3.28517858,2699.0,2698.9,0.13683794]
[1727473032244,0.94990574,2699.0,2698.7,3.70545]
[1727473032538,2.52669584,2699.0,2698.7,3.70545]
[1727473033806,2.52669584,2699.0,2698.8,0.13706361]
[1727473034202,2.52669584,2699.0,2698.7,3.70545]
[1727473034631,2.52669584,2699.0,2698.8,0.13706361]
[1727473035040,2.52669584,2699.0,2698.7,3.70545]
[1727473035343,2.3320901,2699.0,2698.8,0.13706361]
[1727473035548,2.3311301,2699.0,2698.7,3.70545]
[1727473035858,2.3311301,2699.0,2698.9,0.13698271]
[1727473036156,2.3311301,2699.0,2698.7,3.70545]
[1727473036331,2.3311301,2699.0,2698.9,0.13698271]
[1727473036523,2.3311301,2699.0,2698.8,0.13706361]
[1727473036726,2.3311301,2699.0,2698.7,3.70545]
[1727473036927,1.94289068,2698.8,2698.7,3.70545]
[1727473037220,2.3311301,2699.0,2698.7,3.70545]
[1727473037541,1.94274363,2698.8,2698.7,3.84259451]
[1727473039661,1.94274363,2698.8,2698.7,0.13714451]
[1727473039860,1.94274363,2698.8,2698.7,3.84262451]
[1727473040577,1.94245634,2698.8,2698.7,3.84262451]
[1727473045590,1.94236554,2698.8,2698.7,3.84262451]
[1727473050363,1.94232262,2698.8,2698.7,3.84262451]
[1727473053484,4.50294,2698.9,2698.7,0.13714451]
[1727473053687,3.12848714,2698.9,2698.7,0.13714451]
[1727473053884,3.12848714,2698.9,2698.5,3.70575]
[1727473054096,1.94252673,2698.6,2698.5,3.70575]
[1727473055157,1.94248406,2698.6,2698.5,3.70575]
[1727473056161,1.94248406,2698.6,2698.5,3.70576]
[1727473056771,3.12868087,2698.9,2698.5,3.70576]
[1727473056772,1.94248406,2698.7,2698.5,3.70576]
[1727473057359,1.90465566,2698.7,2698.6,0.13750539]
[1727473057802,3.12868087,2698.9,2698.6,3.84312539]
[1727473057971,3.57012266,2698.9,2698.6,3.84312539]
[1727473059966,3.56995212,2698.9,2698.6,3.84312539]
[1727473063110,2.33081033,2698.8,2698.6,3.84312539]
[1727473063707,3.56995212,2698.9,2698.6,3.84312539]
[1727473064482,2.33081033,2698.8,2698.6,3.84312539]
[1727473064905,3.12901529,2698.9,2698.6,3.84312539]
[1727473065425,2.33131529,2698.8,2698.6,3.84312539]
[1727473067900,2.33131529,2698.8,2698.6,7.54867539]
[1727473068687,2.33131529,2698.8,2698.6,3.84305539]
[1727473069329,2.33131529,2698.8,2698.6,7.54858539]
[1727473069501,2.33164792,2698.8,2698.6,7.54858539]
[1727473071100,0.7977,2698.9,2698.6,7.54858539]
[1727473076920,2.33306101,2698.8,2698.7,3.70548]